bitfinex/quotes_SOLUSD_20250719
["timestamp","ask_amount","ask_price","bid_price","bid_amount"]
[1752897010475,8.57872897,177.34,177.33,1e-08]
[1752897010647,48.19872897,177.34,177.33,1e-08]
[1752897013069,48.74578441,177.34,177.33,1e-08]
[1752897014770,48.08578441,177.34,177.33,1e-08]
[1752897016253,48.08578441,177.34,177.33,0.65000001]
[1752897016662,8.46578441,177.34,177.33,1e-08]
[1752897016981,48.08578441,177.34,177.33,1e-08]
[1752897017896,26.0,177.31,177.29,0.2]
[1752897018061,90.93527741,177.34,177.29,0.2]
[1752897018062,67.3168392,177.3,177.29,0.85]
[1752897018258,27.6968392,177.3,177.29,0.85]
[1752897019059,16.38924456,177.3,177.29,0.85]
[1752897019884,22.02940248,177.3,177.29,0.85]
[1752897021084,23.62023748,177.3,177.29,0.85]
[1752897022286,28.69797114,177.3,177.29,0.2]
[1752897023189,28.69797114,177.3,177.29,1e-08]
[1752897024090,45.48265511,177.3,177.29,1e-08]
[1752897024879,16.78468397,177.29,177.25,0.03]
[1752897025091,4.41773366,177.26,177.25,0.03]
[1752897025281,48.45546732,177.26,177.25,0.03]
[1752897025479,49.11546732,177.26,177.25,0.03]
[1752897026182,54.75689798,177.26,177.25,0.03]
[1752897026576,50.33916432,177.26,177.25,0.03]
[1752897027391,16.78468397,177.25,177.18,0.65]
[1752897027568,4.41773366,177.19,177.18,0.65]
[1752897028371,8.83546732,177.19,177.16,0.65]
[1752897028571,4.41773366,177.17,177.13,27.6606]
[1752897028895,4.41773366,177.16,177.14,26.0]
[1752897029191,39.62,177.2,177.15,0.65]
[1752897029383,4.41773366,177.19,177.15,5.06773366]
[1752897029584,4.41773366,177.19,177.16,0.65]
[1752897030306,39.62,177.21,177.17,4.41773366]
[1752897030307,4.41773366,177.21,177.17,4.41773366]
[1752897030611,4.41773366,177.2,177.18,0.65]
[1752897031603,4.41773366,177.21,177.18,0.65]
[1752897031781,5.64242814,177.23,177.18,5.06773366]
[1752897032101,4.41773366,177.24,177.19,6.69533366]
[1752897032305,4.41773366,177.25,177.21,4.41773366]
[1752897032473,4.41773366,177.24,177.22,0.65]
[1752897033190,4.41773366,177.23,177.2,87.6]
[1752897033387,4.41773366,177.23,177.2,85.6]
[1752897033786,4.41773366,177.23,177.21,0.65]
[1752897034216,4.41773366,177.22,177.21,0.65]
[1752897034910,4.41773366,177.22,177.2,85.6]
[1752897035121,5.64239857,177.23,177.2,86.25]
[1752897035327,4.41773366,177.21,177.2,85.6]
[1752897035500,4.41773366,177.22,177.2,85.6]
[1752897035820,4.41773366,177.22,177.19,87.2276]
[1752897036027,4.41773366,177.22,177.21,0.65]
[1752897036240,10.06056976,177.22,177.2,0.71]
[1752897036392,4.41773366,177.21,177.2,0.71]
[1752897037013,4.41773366,177.21,177.18,0.71]
[1752897037200,4.41773366,177.21,177.17,39.64]
[1752897037391,4.41773366,177.2,177.18,0.71]
[1752897037592,4.41773366,177.2,177.17,39.64]
[1752897037922,4.41773366,177.2,177.19,0.71]
[1752897039289,4.41773366,177.21,177.19,0.71]
[1752897039623,4.41773366,177.21,177.2,0.71]
[1752897040704,10.06075606,177.21,177.2,0.71]
[1752897042815,10.75075606,177.21,177.18,0.03]
[1752897043026,5.6430224,177.21,177.19,0.71]
[1752897043226,4.41773366,177.2,177.19,0.71]
[1752897043440,10.06107451,177.2,177.19,0.71]
[1752897043586,10.06107451,177.2,177.18,0.03]
[1752897043792,6.33334085,177.2,177.18,0.03]
[1752897043988,4.41773366,177.19,177.18,0.03]
[1752897044422,5.64334085,177.2,177.18,0.03]
[1752897044591,4.41773366,177.19,177.18,0.03]
[1752897045393,10.061393,177.19,177.18,0.03]
[1752897045905,5.64365934,177.19,177.18,0.03]
[1752897046113,10.061393,177.19,177.18,0.03]
[1752897046298,10.751393,177.19,177.18,0.03]
[1752897047503,15.16912666,177.19,177.18,0.03]
[1752897050154,15.16912666,177.19,177.12,0.71]
[1752897050432,5.10773366,177.18,177.12,0.71]
[1752897050603,4.41773366,177.13,177.12,0.71]
[1752897051826,5.64557104,177.13,177.09,6.2943]
[1752897052036,4.41773366,177.12,177.1,0.71]
[1752897052200,4.41773366,177.11,177.07,77.4476038]
[1752897052405,4.41773366,177.11,177.07,81.86533746]
[1752897052710,5.64557104,177.13,177.08,0.71]
[1752897053327,4.41773366,177.11,177.08,0.71]
[1752897054327,10.06397599,177.11,177.08,0.71]
[1752897055038,4.41773366,177.11,177.08,0.71]
[1752897055339,4.41773366,177.12,177.08,5.12773366]
[1752897055648,4.41773366,177.12,177.09,0.71]
[1752897055820,4.41773366,177.11,177.07,51.4476038]
[1752897056019,4.41773366,177.11,177.03,22.99801724]
[1752897056020,4.41773366,177.08,177.01,6.6422]
[1752897056207,5.64588979,177.12,177.05,4.41773366]
[1752897056406,5.64588979,177.12,177.06,5.12773366]
[1752897056407,4.41773366,177.11,177.06,5.12773366]
[1752897056633,5.64588979,177.12,177.07,0.71]
[1752897056934,4.41773366,177.1,177.07,0.71]
[1752897057268,4.41773366,177.09,177.07,0.71]
[1752897057614,5.64659076,177.1,177.07,0.71]
[1752897057818,4.41773366,177.09,177.07,0.71]
[1752897058238,4.41773366,177.08,177.05,26.71]
[1752897058518,4.41773366,177.07,177.06,0.71]
[1752897059242,10.0652177,177.07,177.06,0.71]
[1752897059745,4.41773366,177.07,177.06,0.71]
[1752897059949,4.41773366,177.1,177.06,5.12773366]
[1752897060150,0.55,177.13,177.07,0.71]
[1752897060344,4.41773366,177.11,177.07,5.12773366]
[1752897060514,4.41773366,177.11,177.08,0.71]
[1752897061370,4.41773366,177.12,177.09,0.71]
[1752897062048,5.64434481,177.17,177.11,4.41773366]
[1752897062353,4.41773366,177.17,177.13,4.41773366]
[1752897062533,4.41773366,177.17,177.14,0.71]
[1752897062728,3.91773366,177.17,177.14,0.71]
[1752897062930,4.41773366,177.19,177.14,5.12773366]
[1752897063132,4.41773366,177.19,177.15,5.12773366]
[1752897063338,5.70360832,177.2,177.16,0.71]
[1752897063542,0.06,177.2,177.17,4.41773366]
[1752897063868,0.06,177.2,177.18,5.12773366]
[1752897064024,5.70343397,177.2,177.16,41.06]
[1752897064227,4.41773366,177.18,177.17,0.71]
[1752897064429,4.41773366,177.19,177.17,0.71]
[1752897064636,5.70343397,177.2,177.17,0.71]
[1752897064838,4.41773366,177.19,177.17,0.71]
[1752897065453,4.41773366,177.18,177.16,41.06]
[1752897065838,4.41773366,177.18,177.15,0.71]
[1752897066432,10.06157935,177.19,177.16,0.67]
[1752897066632,10.12112887,177.2,177.17,0.67]
[1752897066848,10.12112887,177.2,177.14,26.0]
[1752897066849,5.70339521,177.2,177.14,26.0]
[1752897067047,5.70339521,177.2,177.04,10.0]
[1752897067048,0.67,177.19,177.12,0.67]
[1752897067244,4.41773366,177.18,177.12,0.67]
[1752897067560,4.41773366,177.14,177.12,0.67]
[1752897067859,6.31460717,177.17,177.1,6.03403366]
[1752897067860,6.31460717,177.17,177.13,0.67]
[1752897068247,4.41773366,177.15,177.13,0.67]
[1752897068666,4.41773366,177.17,177.14,0.67]
[1752897069157,4.41773366,177.17,177.15,0.67]
[1752897069458,4.41773366,177.16,177.13,26.0]
[1752897069762,4.41773366,177.15,177.14,0.67]
[1752897070261,4.41773366,177.17,177.14,0.67]
[1752897070466,4.41773366,177.18,177.14,5.08773366]
[1752897070640,4.47773366,177.2,177.15,5.08773366]
[1752897070834,0.06,177.2,177.17,4.41773366]
[1752897071039,0.06,177.2,177.18,0.67]
[1752897071245,16.78468397,177.18,177.1,0.03]
[1752897071446,4.41773366,177.11,177.1,0.03]
[1752897071643,68.65,177.17,177.1,0.03]
[1752897071844,4.41773366,177.12,177.1,0.7]
[1752897072241,4.41773366,177.11,177.1,0.7]
[1752897073754,4.41773366,177.15,177.1,5.11773366]
[1752897073974,4.41773366,177.15,177.11,5.08773366]
[1752897074138,4.41773366,177.15,177.1,30.44773366]
[1752897074338,4.41773366,177.15,177.12,0.67]
[1752897074656,5.64433506,177.17,177.12,0.67]
[1752897074657,4.41773366,177.16,177.12,0.67]
[1752897074857,10.06263195,177.16,177.12,0.67]
[1752897075571,5.64489829,177.16,177.12,0.67]
[1752897075863,5.64489829,177.16,177.12,4.41773366]
[1752897076065,5.64489829,177.16,177.13,0.67]
[1752897076444,10.06263195,177.16,177.13,0.67]
[1752897079052,10.06263195,177.16,177.11,4.41773366]
[1752897079258,10.06263195,177.16,177.12,0.67]
[1752897079468,10.73263195,177.16,177.12,0.67]
[1752897081581,4.41773366,177.15,177.12,0.67]
[1752897081962,10.06263195,177.16,177.13,0.67]
[1752897082171,5.64489829,177.16,177.13,0.67]
[1752897082375,10.06263195,177.16,177.13,0.67]
[1752897082665,4.41773366,177.17,177.14,0.67]
[1752897082845,4.41773366,177.17,177.12,4.41773366]
[1752897083047,4.41773366,177.18,177.15,0.67]
[1752897083262,4.41773366,177.18,177.16,0.67]
[1752897083756,5.64413459,177.18,177.16,0.67]
[1752897083960,10.06186825,177.18,177.14,5.08773366]
[1752897084273,10.06186825,177.18,177.15,0.67]
[1752897084574,4.41773366,177.17,177.15,0.67]
[1752897084763,4.47773366,177.17,177.15,0.67]
[1752897085581,0.06,177.17,177.15,0.67]
[1752897085946,0.06,177.17,177.13,4.41773366]
[1752897086151,0.06,177.17,177.16,0.67]
[1752897087676,5.14773366,177.17,177.12,0.7]
[1752897087975,4.41773366,177.14,177.12,0.03]
[1752897088174,4.41773366,177.15,177.12,0.03]
[1752897088375,4.41773366,177.13,177.12,0.03]
[1752897088571,0.67,177.15,177.12,0.03]
[1752897088752,4.41773366,177.13,177.12,0.03]
[1752897089150,6.31521598,177.15,177.12,0.03]
[1752897089462,4.41773366,177.13,177.12,0.03]
[1752897089870,5.08773366,177.13,177.12,0.03]
[1752897090960,10.7333047,177.13,177.12,0.03]
[1752897094076,4.41773366,177.14,177.12,0.7]
[1752897094983,6.31461503,177.16,177.12,0.7]
[1752897095180,4.41773366,177.13,177.12,0.7]
[1752897095386,4.41773366,177.13,177.12,0.03]
[1752897097361,15.14103836,177.13,177.12,0.03]
[1752897098169,10.7233047,177.13,177.12,0.03]
[1752897098354,27.50798867,177.13,177.12,0.03]
[1752897098560,31.92572233,177.13,177.12,0.03]
[1752897100198,31.92572233,177.13,177.04,1.6784]
[1752897100199,16.78468397,177.12,177.04,1.6784]
[1752897100360,4.41773366,177.06,177.04,0.03]
[1752897100987,4.41773366,177.06,177.04,0.71]
[1752897101184,4.41773366,177.12,177.05,0.68]
[1752897101371,4.41773366,177.08,177.05,0.68]
[1752897101683,4.41773366,177.08,177.06,0.68]
[1752897103885,5.64713595,177.09,177.04,0.71]
[1752897104065,4.41773366,177.08,177.05,0.68]
[1752897105394,4.41773366,177.07,177.05,0.68]
[1752897106581,5.07773366,177.06,177.04,0.03]
[1752897106762,4.41773366,177.05,177.04,0.03]
[1752897107072,5.07773366,177.05,177.04,0.03]
[1752897107272,4.41773366,177.05,177.04,0.03]
[1752897107784,5.64759845,177.07,177.04,0.03]
[1752897108101,6.307803,177.06,177.05,0.03]
[1752897109199,15.14327032,177.06,177.05,0.03]
[1752897110071,10.06553666,177.06,177.05,0.03]
[1752897110597,10.72553666,177.06,177.05,0.03]
[1752897110792,6.307803,177.06,177.05,0.03]
[1752897111088,15.14327032,177.06,177.05,0.03]
[1752897114291,16.78468397,177.05,176.97,0.68]
[1752897114497,4.41773366,176.98,176.94,1.5476]
[1752897114797,16.78468397,177.03,176.95,0.68]
[1752897114989,4.41773366,176.98,176.95,26.68]
[1752897115186,0.66,177.05,176.97,4.41773366]
[1752897115385,4.41773366,177.03,176.98,5.09773366]
[1752897115687,4.41773366,177.02,176.99,0.68]
[1752897116680,4.41773366,177.01,176.99,0.68]
[1752897117274,0.66,177.06,176.99,6.32998628]
[1752897117477,4.41773366,177.04,177.0,0.68]
[1752897117667,4.41773366,177.03,177.0,0.68]
[1752897118182,4.41773366,177.03,177.01,0.03]
[1752897118584,4.41773366,177.03,177.02,0.68]
[1752897118784,4.41773366,177.05,177.02,0.68]
[1752897120283,5.64750495,177.07,177.02,5.09773366]
[1752897120502,4.41773366,177.06,177.03,0.68]
[1752897120800,4.41773366,177.06,177.04,0.68]
[1752897121178,5.64716512,177.08,177.04,0.68]
[1752897121379,4.41773366,177.06,177.04,0.68]
[1752897122803,4.41773366,177.05,177.04,0.68]
[1752897124225,5.64781664,177.06,177.01,92.04773366]
[1752897124515,4.41773366,177.05,177.03,0.68]
[1752897125698,4.41773366,177.06,177.04,0.68]
[1752897126592,4.41773366,177.09,177.05,31.12773366]
[1752897126795,0.7,177.13,177.07,4.41773366]
[1752897127000,4.41773366,177.11,177.08,0.71]
[1752897127190,19.4106718,177.14,177.08,5.12773366]
[1752897127390,4.41773366,177.12,177.09,0.71]
[1752897127771,19.4106718,177.14,177.09,0.71]
[1752897127969,4.41773366,177.13,177.09,0.71]
[1752897128197,19.4106718,177.14,177.09,0.71]
[1752897128400,4.41773366,177.13,177.09,0.71]
[1752897129082,4.41773366,177.12,177.1,0.71]
[1752897133610,5.7056711,177.13,177.1,0.71]
[1752897133796,4.47773366,177.13,177.09,4.41773366]
[1752897134111,4.47773366,177.13,177.11,0.71]
[1752897134891,4.41773366,177.12,177.09,41.2]
[1752897135090,5.70557807,177.13,177.1,0.71]
[1752897135316,4.41773366,177.12,177.1,0.71]
[1752897137013,0.06,177.13,177.12,26.0]
[1752897137313,0.06,177.13,177.12,76.68546732]
[1752897138891,0.06,177.13,177.12,82.33135711]
[1752897140716,0.06,177.13,177.12,169.93135711]
[1752897140905,0.06,177.13,177.12,186.71604108]
[1752897145795,0.06,177.13,177.12,194.56814108]
[1752897146400,1e-08,177.13,177.12,194.56814108]
[1752897146802,0.06,177.16,177.15,122.43546732]
[1752897147024,0.06,177.16,177.15,163.45546732]
[1752897147219,0.06,177.16,177.15,159.74773366]
[1752897147814,0.06,177.16,177.15,165.39266733]
[1752897148331,0.06,177.16,177.15,169.81040099]
[1752897148527,0.06,177.2,177.19,42.78468397]
[1752897148727,0.06,177.2,177.19,237.44678356]
[1752897148920,0.06,177.2,177.19,237.59241763]
[1752897149634,0.06,177.2,177.19,114.31]
[1752897149812,0.06,177.2,177.19,158.99773366]
[1752897150202,0.06,177.2,177.19,165.351393]
[1752897152208,0.06,177.2,177.19,182.13607697]
[1752897161134,0.06,177.23,177.22,16.78468397]
[1752897161330,0.06,177.23,177.22,217.32082168]
[1752897161525,0.06,177.23,177.22,217.44655129]
[1752897163238,0.06,177.23,177.22,223.08925527]
[1752897170340,0.06,177.23,177.22,214.25378795]
[1752897170546,0.06,177.23,177.22,223.08925527]
[1752897170929,0.06,177.23,177.22,221.55285527]
[1752897171649,0.06,177.24,177.23,87.47999999]
[1752897171841,0.06,177.24,177.23,96.87970587]
[1752897172241,0.06,177.24,177.23,103.21209147]
[1752897172748,0.06,177.24,177.23,110.47130812]
[1752897173047,0.06,177.24,177.23,119.30677544]
[1752897173347,0.06,177.24,177.23,118.74253688]
[1752897176552,0.06,177.28,177.27,16.78468397]
[1752897176851,0.1,177.3,177.29,42.78468397]
[1752897177050,0.1,177.3,177.29,92.90419889]
[1752897177233,0.1,177.3,177.29,93.59419889]
[1752897178744,0.1,177.3,177.29,99.23467494]
[1752897180551,0.75,177.35,177.3,87.37999999]
[1752897180729,0.75,177.35,177.3,102.54562523]
[1752897181940,0.75,177.35,177.3,103.10964102]
[1752897187138,0.1,177.35,177.3,103.09964102]
[1752897187333,0.1,177.35,177.3,94.2641737]
[1752897187655,0.78,177.35,177.3,103.09964102]
[1752897189258,0.68,177.34,177.3,103.09964102]
[1752897191167,0.1,177.35,177.3,103.09964102]
[1752897191564,0.78,177.35,177.3,103.09964102]
[1752897194448,0.68,177.34,177.3,103.09964102]
[1752897197462,0.1,177.35,177.3,119.88432499]
[1752897197652,0.1,177.35,177.3,119.3203092]
[1752897198260,0.1,177.35,177.34,26.0]
[1752897198463,0.78,177.35,177.34,158.19773365]
[1752897199273,0.78,177.35,177.34,163.8366194]
[1752897199956,0.1,177.35,177.34,163.8366194]
[1752897201177,0.78,177.35,177.34,163.8366194]
[1752897202662,0.78,177.35,177.34,153.77999999]
[1752897202859,0.78,177.35,177.34,113.31999999]
[1752897203060,5.19773366,177.35,177.34,87.31999999]
[1752897203374,10.83630146,177.35,177.34,87.31999999]
[1752897203673,17.15030146,177.35,177.3,87.34999999]
[1752897203859,5.09773366,177.34,177.3,113.34999999]
[1752897204063,0.68,177.33,177.3,113.34999999]
[1752897204258,4.41773366,177.32,177.3,87.34999999]
[1752897204564,5.09773366,177.31,177.3,0.03]
[1752897204771,10.73757348,177.31,177.3,0.03]
[1752897207570,6.31983982,177.31,177.3,0.03]
[1752897207769,0.68,177.31,177.3,0.03]
[1752897209164,0.68,177.34,177.31,26.0]
[1752897209368,0.1,177.35,177.34,26.0]
[1752897209564,0.1,177.35,177.34,70.91773366]
[1752897209777,0.78,177.35,177.34,70.91773366]
[1752897212595,0.78,177.35,177.34,26.0]
[1752897214282,0.78,177.35,177.34,30.41773366]
[1752897214985,0.78,177.35,177.34,26.0]
[1752897216079,0.78,177.35,177.32,4.41773366]
[1752897217494,0.78,177.35,177.33,4.41773366]
[1752897220088,0.78,177.35,177.32,4.41773366]
[1752897220680,0.78,177.35,177.33,4.41773366]
[1752897221185,0.72,177.34,177.33,4.41773366]
[1752897223682,0.1,177.35,177.33,4.41773366]
[1752897223887,0.1,177.35,177.34,30.41773366]
[1752897225097,0.1,177.35,177.34,117.73773365]
[1752897230905,0.1,177.35,177.34,118.44773365]
[1752897237406,0.1,177.35,177.34,124.0866194]
[1752897237905,0.1,177.35,177.34,118.44773365]
[1752897240204,0.1,177.35,177.34,117.73773365]
[1752897241086,0.1,177.35,177.34,118.44773365]
[1752897242106,0.1,177.35,177.34,124.0866194]
[1752897247320,0.1,177.35,177.34,119.66888574]
[1752897247623,0.1,177.35,177.34,124.0866194]
[1752897247826,0.1,177.35,177.34,119.66888574]
[1752897247998,0.1,177.35,177.34,157.93773365]
[1752897248320,0.1,177.35,177.34,164.2366194]
[1752897248924,0.1,177.35,177.34,162.64265104]
[1752897250207,0.1,177.35,177.34,159.81888574]
[1752897250416,0.1,177.35,177.34,162.64265104]
[1752897251225,0.1,177.35,177.34,161.98265104]
[1752897251532,0.78,177.35,177.34,156.34376529]
[1752897252101,0.1,177.35,177.34,156.34376529]
[1752897262935,0.78,177.35,177.34,113.31999999]
[1752897263140,0.78,177.35,177.34,87.31999999]
[1752897263713,6.4185678,177.35,177.34,87.31999999]
[1752897264140,9.2423331,177.35,177.34,87.31999999]
[1752897264345,9.2423331,177.35,177.31,0.03]
[1752897264525,0.68,177.34,177.31,2.8537653]
[1752897264729,0.68,177.33,177.31,0.03]
[1752897265032,0.68,177.33,177.31,2.8537653]
[1752897265526,0.78,177.35,177.32,2.8237653]
[1752897265729,0.78,177.35,177.33,2.8237653]
[1752897266117,0.78,177.35,177.32,0.66]
[1752897266118,0.1,177.35,177.32,0.66]
[1752897266310,0.1,177.35,177.33,2.8237653]
[1752897266659,0.1,177.35,177.34,2.8237653]
[1752897266810,0.1,177.35,177.34,49.32265105]
[1752897268918,0.1,177.35,177.34,50.9099274]
[1752897270627,0.1,177.35,177.34,55.32096905]
[1752897272240,0.1,177.35,177.34,142.64096904]
[1752897273742,0.1,177.35,177.34,159.42565301]
[1752897277255,0.1,177.39,177.38,16.78468397]
[1752897277430,0.1,177.39,177.38,210.65948703]
[1752897277630,0.1,177.39,177.38,210.79572562]
[1752897279533,0.1,177.39,177.38,216.43333978]
[1752897285054,0.06,177.45,177.4,16.78468397]
[1752897285256,0.06,177.45,177.41,66.35043335]
[1752897285853,0.06,177.45,177.41,67.05043335]
[1752897286575,0.06,177.45,177.41,72.68709419]
[1752897288047,0.06,177.45,177.42,31.94311041]
[1752897288232,0.06,177.45,177.44,51.60676727]
[1752897288938,0.06,177.45,177.44,52.30676727]
[1752897290149,0.06,177.45,177.44,57.94247511]
[1752897290323,0.06,177.45,177.44,53.53143346]
[1752897292951,0.06,177.46,177.45,92.79539023]
[1752897293171,0.06,177.46,177.45,138.6299709]
[1752897293463,0.06,177.46,177.45,138.06643188]
[1752897294269,0.06,177.46,177.45,132.95539023]
[1752897294433,0.06,177.46,177.45,154.15111585]
[1752897298357,0.06,177.46,177.45,154.85111585]
[1752897306951,0.06,177.46,177.45,153.2593965]
[1752897311064,0.06,177.46,177.45,152.5593965]
[1752897312578,0.74,177.46,177.45,152.5593965]
[1752897312959,0.06,177.46,177.45,152.5593965]
[1752897313161,0.06,177.46,177.45,146.92400625]
[1752897315155,0.74,177.46,177.45,146.92400625]
[1752897315373,0.06,177.46,177.45,146.92400625]
[1752897315575,0.06,177.46,177.45,152.5593965]
[1752897315774,0.06,177.46,177.45,153.2293965]
[1752897317157,0.06,177.49,177.48,62.51573315]
[1752897317511,0.78,177.52,177.51,26.0]
[1752897317674,0.1,177.52,177.51,68.9593223]
[1752897318163,0.78,177.52,177.51,68.9593223]
[1752897319360,0.78,177.52,177.51,66.14]
[1752897319672,3.5993223,177.52,177.51,66.14]
[1752897321669,9.23249039,177.52,177.45,2.8193223]
[1752897321872,0.68,177.51,177.46,40.12]
[1752897322079,2.8193223,177.49,177.46,127.27999998]
[1752897322287,2.8193223,177.49,177.48,26.0]
[1752897322490,2.8193223,177.5,177.48,66.12]
[1752897322677,2.9193223,177.52,177.48,68.9393223]
[1752897322990,5.08588806,177.51,177.48,66.12]
[1752897323195,5.08588806,177.5,177.48,66.12]
[1752897323364,0.68,177.49,177.48,66.12]
[1752897328677,5.08588806,177.49,177.48,66.12]
[1752897328896,5.08588806,177.49,177.48,64.97413376]
[1752897329108,5.08588806,177.51,177.48,64.97413376]
[1752897329277,4.40588806,177.5,177.48,64.97413376]
[1752897329607,5.08588806,177.49,177.48,64.97413376]
[1752897330302,5.08588806,177.49,177.45,87.15999998]
[1752897330510,4.40588806,177.47,177.46,40.12]
[1752897330681,5.08588806,177.47,177.46,40.12]
[1752897331188,1.5331,177.5,177.46,40.12]
[1752897331189,2.2131,177.5,177.46,40.12]
[1752897331389,0.68,177.5,177.47,5.07588806]
[1752897331592,4.40588806,177.51,177.48,40.12]
[1752897331792,5.08588806,177.51,177.48,127.27999998]
[1752897332283,4.40588806,177.49,177.48,87.15999998]
[1752897332483,5.08588806,177.49,177.48,87.15999998]
[1752897333382,10.72000829,177.49,177.48,87.15999998]
[1752897333692,6.31412023,177.49,177.48,87.15999998]
[1752897333894,10.72000829,177.49,177.48,87.15999998]
[1752897337285,5.08588806,177.49,177.46,40.12]
[1752897337485,5.12588806,177.48,177.46,40.12]
[1752897338086,4.40588806,177.48,177.46,40.8]
[1752897338290,4.40588806,177.48,177.46,40.12]
[1752897338790,5.12588806,177.48,177.46,40.12]
[1752897339001,4.40588806,177.48,177.46,40.12]
[1752897339388,5.12588806,177.48,177.46,40.12]
[1752897341109,0.72,177.48,177.46,40.12]
[1752897341408,4.40588806,177.48,177.46,40.12]
[1752897343306,4.40588806,177.48,177.46,127.27999998]
[1752897346087,0.72,177.49,177.46,127.27999998]
[1752897346296,0.72,177.49,177.46,127.95999998]
[1752897346502,5.12588806,177.49,177.46,127.95999998]
[1752897346984,5.6334978,177.51,177.46,127.95999998]
[1752897347191,4.40588806,177.5,177.47,0.68]
[1752897347401,4.40588806,177.5,177.48,40.78]
[1752897347610,4.40588806,177.5,177.49,40.1]
[1752897347914,4.40588806,177.51,177.49,40.1]
[1752897348095,0.1,177.52,177.5,0.68]
[1752897348291,0.1,177.52,177.51,40.78]
[1752897348504,0.1,177.52,177.51,127.93999998]
[1752897349618,0.1,177.52,177.51,132.34588804]
[1752897350210,0.1,177.52,177.51,127.93999998]
[1752897352432,0.1,177.52,177.51,127.25999998]
[1752897352806,0.1,177.52,177.51,127.93999998]
[1752897356626,0.1,177.52,177.51,127.25999998]
[1752897358031,0.82,177.52,177.51,127.23999998]
[1752897358912,5.22588806,177.52,177.51,127.23999998]
[1752897359108,5.22588806,177.52,177.51,87.15999998]
[1752897359414,5.22588806,177.52,177.51,127.23999998]
[1752897360109,0.82,177.52,177.51,127.23999998]
[1752897360830,5.22588806,177.52,177.51,127.23999998]
[1752897361042,0.82,177.52,177.51,127.23999998]
[1752897361334,5.22588806,177.52,177.51,127.23999998]
[1752897361731,10.85905615,177.52,177.51,87.15999998]
[1752897364030,10.85905615,177.52,177.5,40.08]
[1752897364223,4.50588806,177.52,177.51,40.08]
[1752897364735,0.1,177.52,177.5,40.08]
[1752897364943,4.50588806,177.52,177.5,40.08]
[1752897365826,0.1,177.52,177.5,40.08]
[1752897366338,0.1,177.52,177.51,0.72]
[1752897368650,0.1,177.52,177.51,31.12588806]
[1752897369913,0.1,177.52,177.51,118.28588804]
[1752897370724,0.1,177.52,177.51,113.87999998]
[1752897371052,0.1,177.52,177.51,118.28588804]
[1752897371459,0.1,177.52,177.51,116.28315744]
[1752897375547,0.1,177.52,177.51,120.6890455]
[1752897376953,0.1,177.52,177.51,269.3890455]
[1752897378534,0.06,177.54,177.53,16.78468397]
[1752897378733,0.06,177.54,177.53,301.95974514]
[1752897378932,0.06,177.54,177.53,302.11646007]
[1752897380039,0.06,177.54,177.53,307.74931085]
[1752897380729,1e-08,177.54,177.53,307.74931085]
[1752897380930,0.06,177.55,177.54,16.78468397]
[1752897381158,0.06,177.55,177.54,26.87971344]
[1752897381467,0.06,177.55,177.54,18.06793732]
[1752897381638,0.06,177.55,177.54,302.67971342]
[1752897381969,0.06,177.55,177.54,302.11646007]
[1752897382129,0.06,177.55,177.54,307.74899358]
[1752897387656,0.06,177.56,177.55,92.63221625]
[1752897387840,0.06,177.56,177.55,97.60132593]
[1752897388044,0.06,177.56,177.55,98.32132593]
[1752897389356,0.06,177.56,177.55,133.21543787]
[1752897389554,0.06,177.56,177.55,153.84278828]
[1752897390254,0.06,177.56,177.55,154.56278828]
[1752897392071,0.06,177.56,177.55,86.99999998]
[1752897392252,0.75,177.56,177.55,126.99999998]